bitfinex/quotes_ETHUSD_20251023
["timestamp","ask_amount","ask_price","bid_price","bid_amount"]
[1761244517794,0.001,3884.8,3884.4,2.57433488]
[1761244518308,0.001,3884.8,3884.5,2.57433079]
[1761244518618,0.001,3884.8,3884.3,0.002]
[1761244518778,0.2205,3884.8,3884.3,0.002]
[1761244518983,0.2205,3884.8,3884.3,2.57645513]
[1761244519208,3.308,3884.7,3884.3,2.57645513]
[1761244519387,3.308,3884.7,3884.3,0.002]
[1761244519587,0.2195,3884.6,3884.3,0.002]
[1761244519885,3.308,3884.5,3884.3,0.002]
[1761244520285,0.2195,3884.4,3884.3,0.002]
[1761244521712,2.79390016,3884.4,3884.3,0.002]
[1761244522508,0.2195,3884.4,3884.3,0.002]
[1761244522712,2.79490016,3884.4,3884.3,0.002]
[1761244523230,2.92370016,3884.4,3884.3,0.002]
[1761244523434,0.1298,3884.4,3884.3,0.002]
[1761244524138,0.3493,3884.4,3884.3,0.002]
[1761244524709,2.92370016,3884.4,3884.3,0.002]
[1761244525036,4.98578016,3884.4,3884.3,0.002]
[1761244525336,15.06173707,3884.4,3884.3,0.002]
[1761244525835,15.7387978,3884.4,3884.3,0.002]
[1761244526005,15.06173707,3884.4,3884.3,0.002]
[1761244526403,15.73667998,3884.4,3884.3,0.002]
[1761244528422,15.06173707,3884.4,3884.3,0.002]
[1761244529331,15.16485629,3884.4,3884.3,0.002]
[1761244529732,2.574599,3884.1,3884.0,0.002]
[1761244531757,18.24066631,3883.3,3883.2,0.002]
[1761244531951,18.46256631,3883.3,3883.2,0.002]
[1761244532457,18.46256631,3883.3,3882.8,0.01]
[1761244532458,4.63747467,3882.9,3882.8,0.01]
[1761244532660,8.92515781,3882.9,3882.8,0.01]
[1761244533372,5.58043095,3882.9,3882.8,0.01]
[1761244533661,8.92755781,3882.9,3882.8,0.01]
[1761244534236,18.46333158,3882.9,3882.8,0.01]
[1761244534856,8.92755781,3882.9,3882.8,0.01]
[1761244535637,9.14945781,3882.9,3882.8,0.01]
[1761244536256,9.14945781,3882.9,3879.3,0.1286316]
[1761244536257,9.14945781,3882.9,3878.0,3.06232777]
[1761244536258,2.708,3879.9,3878.0,3.06232777]
[1761244536481,3.1002,3882.8,3877.4,0.3]
[1761244536482,3.1002,3882.8,3877.6,0.003]
[1761244536483,2.57864209,3878.1,3877.6,0.003]
[1761244536774,1.5552,3878.8,3877.6,0.003]
[1761244536775,3.429,3878.0,3877.6,0.003]
[1761244536989,0.3,3878.0,3877.7,0.2219]
[1761244537155,0.3,3878.0,3877.9,2.57871528]
[1761244537475,0.53722671,3879.1,3877.9,0.65209958]
[1761244537682,1.34727964,3880.1,3877.9,0.65209958]
[1761244537683,0.77421452,3879.2,3877.9,0.72225519]
[1761244537889,0.77421452,3879.2,3877.6,0.003]
[1761244537890,0.77421452,3879.2,3878.0,0.72225519]
[1761244538187,3.007,3879.8,3878.0,0.72225519]
[1761244538351,3.007,3879.8,3878.1,1.5552]
[1761244538536,3.007,3879.8,3878.7,2.57813231]
[1761244538739,3.007,3879.8,3878.2,3.33475513]
[1761244538740,5.58446233,3879.8,3878.2,3.33475513]
[1761244538978,5.58446233,3879.8,3877.6,3.432]
[1761244538979,1.5552,3879.6,3877.6,0.003]
[1761244539338,2.57759106,3879.6,3878.5,2.57827427]
[1761244539536,2.5776663,3879.5,3878.4,2.57838092]
[1761244539795,2.5776663,3879.5,3878.4,2.83621901]
[1761244539982,2.57759047,3879.6,3878.5,2.57831094]
[1761244540440,2.57759047,3879.6,3878.6,2.57824323]
[1761244540777,2.57759047,3879.6,3878.4,0.25783809]
[1761244540778,1.39589501,3880.2,3878.7,0.02578183]
[1761244540978,0.53481943,3880.1,3878.0,0.002]
[1761244541166,0.2346,3880.6,3878.4,1.5552]
[1761244541337,1.99883809,3880.5,3879.3,0.1288]
[1761244541542,0.1288,3880.0,3879.3,0.1288]
[1761244541775,0.1288,3880.0,3879.6,2.57754636]
[1761244542281,3.25043253,3880.8,3878.9,2.57803881]
[1761244542282,3.5588,3880.3,3879.7,0.64432646]
[1761244542440,3.5588,3880.3,3880.1,2.57723178]
[1761244542842,3.5588,3880.3,3879.7,0.1288]
[1761244543078,0.2346,3880.2,3878.1,6.23647908]
[1761244543250,0.2346,3880.2,3878.6,2.57824988]
[1761244543583,0.684,3880.2,3879.2,2.57782702]
[1761244543798,0.684,3880.2,3878.3,0.77936791]
[1761244544095,0.684,3880.2,3879.3,2.57777082]
[1761244544278,0.684,3880.2,3879.0,2.57795269]
[1761244544591,3.26119591,3880.2,3879.1,2.57788467]
[1761244544753,3.26119591,3880.2,3878.3,1.5552]
[1761244544754,3.0267114,3880.1,3878.3,1.5552]
[1761244544953,0.4494,3880.1,3879.3,2.57776296]
[1761244545155,0.4494,3880.1,3879.3,2.57776788]
[1761244545351,0.4494,3880.1,3879.2,2.57784314]
[1761244545755,0.4494,3880.1,3879.3,2.57777341]
[1761244545977,2.57737874,3880.0,3878.8,2.5780809]
[1761244546180,2.5773701,3880.0,3878.9,2.57803035]
[1761244546356,3.02679388,3879.9,3878.8,2.57808449]
[1761244546685,1.7898,3880.2,3878.4,0.17831455]
[1761244546686,1.5552,3879.7,3878.4,0.17831455]
[1761244546866,1.5552,3879.7,3878.5,2.57827448]
[1761244546867,4.13272419,3879.7,3878.5,2.57827448]
[1761244547064,3.02703597,3879.6,3878.5,2.57827448]
[1761244547265,0.50688,3879.5,3877.7,2.57883563]
[1761244547465,0.50688,3879.3,3878.1,2.57858229]
[1761244547667,2.5779181,3879.1,3878.1,2.57858229]
[1761244547871,0.53408276,3879.0,3878.0,2.58064051]
[1761244548204,0.98348276,3879.0,3878.0,0.002]
[1761244548401,2.2392,3878.9,3878.0,0.002]
[1761244548606,0.53408276,3878.8,3878.0,2.58064366]
[1761244548813,3.8744,3878.7,3878.0,0.002]
[1761244549089,2.5959917,3878.6,3878.0,0.002]
[1761244549273,5.5151117,3878.5,3878.0,0.002]
[1761244549460,0.5339117,3878.4,3878.0,0.002]
[1761244549792,0.50688,3878.3,3878.0,0.002]
[1761244549956,3.61929403,3878.3,3878.0,0.002]
[1761244550158,0.4494,3878.4,3878.0,0.002]
[1761244550159,0.9833117,3878.2,3878.0,0.002]
[1761244550360,0.5339117,3878.1,3878.0,0.002]
[1761244550577,3.426,3878.5,3878.0,0.002]
[1761244550578,0.5339117,3878.3,3878.0,0.002]
[1761244550790,1.34758643,3878.7,3878.0,0.002]
[1761244550791,3.433,3878.2,3878.0,0.002]
[1761244550991,3.434,3878.1,3878.0,0.002]
[1761244552367,4.41693114,3878.1,3878.0,0.002]
[1761244552893,9.05759343,3878.1,3878.0,0.002]
[1761244553092,9.18639343,3878.1,3878.0,0.002]
[1761244553898,10.08457986,3878.1,3878.0,0.002]
[1761244554395,10.53367307,3878.1,3878.0,0.002]
[1761244554597,9.18639343,3878.1,3878.0,0.002]
[1761244554899,6.15841114,3878.1,3878.0,0.002]
[1761244555085,5.64853114,3878.1,3878.0,0.002]
[1761244555603,4.09333114,3878.1,3878.0,0.002]
[1761244557702,4.76076136,3878.1,3878.0,0.002]
[1761244557879,4.09333114,3878.1,3878.0,0.002]
[1761244558074,4.76162294,3878.1,3878.0,0.002]
[1761244558411,4.09333114,3878.1,3878.0,0.002]
[1761244558609,4.76215075,3878.1,3878.0,0.002]
[1761244559294,4.09333114,3878.1,3878.0,0.002]
[1761244560106,4.55043114,3878.1,3878.0,0.002]
[1761244560300,8.01845224,3878.1,3878.0,0.002]
[1761244560494,5.43986995,3878.1,3878.0,0.002]
[1761244560696,8.01845224,3878.1,3878.0,0.002]
[1761244560882,8.47629307,3878.1,3878.0,0.00113246]
[1761244561080,8.47629307,3878.1,3878.0,0.00022155]
[1761244561081,10.53837307,3878.1,3878.0,0.00022155]
[1761244561305,5.51973114,3878.1,3877.6,0.005]
[1761244561505,1.34069927,3877.8,3877.7,2.57879777]
[1761244561704,0.1288,3877.7,3877.6,2.58390089]
[1761244561906,1.55614423,3877.7,3877.6,2.58390089]
[1761244562274,0.66233114,3877.7,3877.6,2.58390089]
[1761244563391,1.55614423,3877.7,3877.6,2.58390089]
[1761244564385,1.55831277,3877.7,3877.6,2.58390089]
[1761244564716,1.20559787,3877.7,3877.6,3.16019535]
[1761244564882,0.53353114,3877.7,3877.6,3.16019535]
[1761244566217,0.67293506,3878.3,3878.2,2.5785158]
[1761244566406,1.21298492,3878.3,3878.2,2.5785158]
[1761244566781,0.53910331,3878.3,3878.2,2.5785158]
[1761244567828,0.53910331,3878.3,3878.2,3.09423226]
[1761244568013,0.67388161,3878.8,3878.5,2.57831635]
[1761244568187,0.67388161,3878.8,3878.7,2.57818341]
[1761244568388,0.67388161,3879.4,3878.7,2.57818341]
[1761244568690,0.67388161,3879.4,3878.2,3.93671646]
[1761244568691,3.421,3879.5,3879.4,2.5777182]
[1761244568692,4.09488161,3879.5,3879.4,2.5777182]
[1761244568887,3.421,3879.5,3879.4,2.5777182]
[1761244570226,3.421,3879.5,3878.2,0.51571646]
[1761244570523,3.421,3879.5,3877.7,2.57878438]
[1761244570524,0.67388161,3879.2,3877.7,3.421]
[1761244570687,4.09488161,3879.1,3878.6,2.57821925]
[1761244570886,0.67388161,3879.0,3878.7,2.57816294]
[1761244571090,0.67388161,3879.0,3877.9,2.57871528]
[1761244571315,0.67388161,3879.0,3878.0,2.57864878]
[1761244571511,0.67388161,3879.0,3878.6,2.57818747]
[1761244571717,0.67388161,3879.0,3878.0,2.57864878]
[1761244572291,0.67388161,3879.0,3878.1,2.57858229]
[1761244572806,4.09488161,3879.1,3878.0,2.57864878]
[1761244573130,3.417,3879.0,3878.9,2.57805047]
[1761244573840,3.417,3879.0,3878.9,2.57723042]
[1761244574602,3.5458,3879.0,3878.9,2.57723042]
[1761244575014,3.417,3879.0,3878.9,2.57723042]
[1761244575251,0.67388161,3879.3,3879.1,2.57791755]
[1761244575252,3.415,3879.2,3879.1,2.57791755]
[1761244577534,0.1298,3879.5,3879.4,2.5777182]
[1761244577850,3.5438,3879.5,3879.4,2.5777182]
[1761244578213,0.001,3879.5,3879.4,2.5777182]
[1761244579558,0.001,3879.5,3879.4,3.35106162]
[1761244580734,0.001,3879.5,3879.4,6.76306162]
[1761244584355,0.001,3879.5,3878.3,4.64052932]
[1761244584356,0.4581,3879.5,3878.2,2.5785158]
[1761244584555,0.4581,3879.5,3878.1,2.57858016]
[1761244584556,0.4581,3879.5,3878.3,4.9622]
[1761244584875,0.4581,3879.5,3879.3,2.57772842]
[1761244585232,0.4581,3879.5,3879.4,2.5777182]
[1761244585655,0.4581,3879.5,3879.3,2.57777748]
[1761244586357,0.4581,3879.5,3878.4,3.404]
[1761244586553,0.4581,3879.5,3879.2,2.57784263]
[1761244586767,0.4581,3879.5,3879.0,2.57797339]
[1761244588962,0.001,3879.5,3878.7,0.51564973]
[1761244589158,2.57918085,3877.2,3875.2,2.30548336]
[1761244589367,0.2261,3876.3,3875.5,2.90548336]
[1761244589666,2.76866704,3876.3,3875.5,0.6]
[1761244589909,5.12796511,3876.3,3875.5,0.6]
[1761244590803,2.09478543,3876.3,3875.5,0.6]
[1761244590962,0.53958543,3876.3,3875.7,2.58016522]
[1761244591301,0.53958543,3876.5,3876.1,0.1583]
[1761244591499,0.53799526,3876.7,3876.1,0.1583]
[1761244592110,0.53799526,3876.9,3876.2,2.879823]
[1761244592396,0.53809104,3876.9,3876.2,0.3]
[1761244592597,1.08231726,3876.9,3876.2,0.3]
[1761244592781,2.57951796,3876.7,3876.2,0.3]
[1761244593174,3.66175438,3876.9,3876.2,0.3]
[1761244593495,1.08231726,3876.9,3876.2,0.3]
[1761244593791,2.57946571,3876.8,3876.2,0.3]
[1761244594000,1.5552,3877.0,3876.2,2.87978162]
[1761244594292,0.2261,3877.3,3876.2,2.87978162]
[1761244594499,0.36143816,3877.3,3876.2,2.87978162]
[1761244594697,1.5552,3877.1,3876.2,2.87978162]
[1761244594988,4.13444896,3877.1,3876.3,2.57977567]
[1761244595190,2.57924896,3877.1,3876.2,0.3]
[1761244595363,2.57924896,3877.1,3876.2,2.87983529]
[1761244595565,1.5552,3876.9,3876.2,2.87983529]
[1761244596400,2.57938363,3876.9,3876.3,3.517]
[1761244596595,2.57938363,3876.9,3876.3,3.514]
[1761244597078,2.57931737,3877.0,3876.3,3.514]
[1761244597279,1.5552,3876.9,3876.3,3.514]
[1761244597475,1.5552,3877.1,3876.3,3.514]
[1761244597677,0.48138823,3877.1,3876.2,0.3]
[1761244598012,0.4534,3877.0,3876.2,0.3]
[1761244598207,2.57971324,3876.4,3876.2,0.3]
[1761244598512,4.13497968,3876.3,3876.2,0.3]
[1761244599013,4.58837968,3876.3,3876.2,0.3]
[1761244599183,4.71717968,3876.3,3876.2,0.3]
[1761244599377,5.22405968,3876.3,3876.2,0.3]
[1761244599584,5.09525968,3876.3,3876.2,0.3]
[1761244602091,2.0086,3876.3,3876.2,0.3]
[1761244602314,1.5552,3876.3,3876.2,0.3]
[1761244602496,3.505,3876.9,3876.2,0.3]
[1761244602830,6.4348805,3876.9,3876.2,0.3]
[1761244602996,1.5552,3876.8,3876.2,0.3]
[1761244603197,1.5552,3876.8,3876.2,2.87983684]
[1761244603586,1.5552,3876.8,3876.2,2.87984261]
[1761244603788,1.5552,3877.0,3876.2,0.3]
[1761244603988,2.0086,3876.8,3876.2,2.87984295]
[1761244604198,1.5552,3876.8,3876.2,2.87984295]
[1761244604397,0.50592,3876.9,3876.2,0.3]
[1761244604600,1.5552,3877.1,3876.2,2.87983326]
[1761244604801,2.0086,3877.1,3876.3,2.57977968]
[1761244605013,2.0086,3877.1,3876.4,2.57968775]
[1761244605229,2.0086,3877.1,3876.5,2.57964345]
[1761244605409,1.5552,3877.1,3876.3,2.57975442]
[1761244605920,1.5552,3877.1,3876.2,0.3]
[1761244605921,3.9574,3877.2,3876.5,2.57962855]
[1761244606216,3.9574,3877.2,3876.2,0.3]
[1761244606217,3.9574,3877.2,3876.6,2.57956688]
[1761244606428,0.4534,3877.2,3876.5,2.57963829]
[1761244606604,2.0086,3877.2,3876.2,0.3]
[1761244606793,0.4534,3877.2,3876.6,2.57952438]
[1761244607118,0.32585482,3877.1,3876.6,2.57951466]
[1761244607315,1.5552,3877.2,3876.6,2.57951466]
[1761244607522,0.2261,3877.3,3876.7,2.57950724]
[1761244607722,0.2261,3877.3,3876.8,2.57944296]
[1761244608017,0.2261,3877.3,3876.7,2.57948962]
[1761244608218,1.5552,3877.2,3876.7,2.57949532]
[1761244608419,0.2261,3877.3,3876.7,2.57949532]
[1761244608721,0.2261,3877.3,3876.2,0.7736]
[1761244609016,0.2261,3877.3,3876.8,2.57942966]
[1761244609222,1.7813,3877.3,3876.7,2.57949127]
[1761244609427,0.2261,3878.4,3877.0,2.57928263]
[1761244609613,0.1288,3877.4,3876.9,2.70818021]
[1761244609803,0.1288,3877.4,3877.3,2.57911433]
[1761244610821,0.1288,3877.4,3877.2,2.5791679]
[1761244611024,0.1288,3877.4,3877.1,3.6503]
[1761244611228,0.1288,3877.4,3877.3,2.57911433]
[1761244614818,0.001,3877.6,3877.5,2.5789813]
[1761244615125,0.001,3877.6,3877.4,2.57902868]
[1761244615323,0.001,3877.6,3877.5,2.5789813]
[1761244615839,0.001,3877.6,3877.3,2.57906517]
[1761244616033,0.001,3877.6,3877.4,2.57903499]
[1761244616223,0.001,3877.6,3877.5,3.478]
[1761244616416,0.001,3877.6,3877.5,6.0569813]
[1761244617831,0.001,3877.6,3877.5,6.0539813]
[1761244618232,0.001,3877.6,3877.5,6.0529813]
[1761244618434,0.53811666,3877.6,3877.5,6.0529813]
[1761244618629,0.67177739,3877.6,3877.3,3.474]
[1761244618945,0.1288,3877.4,3877.2,3.473]
[1761244619240,0.5883,3877.4,3877.2,6.0521737]
[1761244619442,0.5883,3877.4,3876.4,0.462]
[1761244619443,0.53711666,3877.3,3876.4,0.462]
[1761244619650,0.1288,3877.1,3876.9,2.57931662]
[1761244619847,0.1288,3877.1,3877.0,6.0513139]
[1761244620213,0.1288,3877.1,3876.6,0.1288]
[1761244620420,1.66630734,3877.0,3876.4,3.471]
[1761244620748,0.1288,3876.6,3876.4,6.05069182]
[1761244620926,0.1288,3876.6,3876.5,2.57964658]
[1761244621322,0.66591666,3876.6,3876.5,2.57964658]
[1761244621644,0.1288,3876.6,3876.5,2.57964658]
[1761244621844,0.54002527,3876.7,3876.5,2.57964658]
[1761244622145,0.54002527,3876.6,3876.5,2.57964658]
[1761244622464,0.1288,3876.8,3876.5,2.57964658]
[1761244622465,0.54002527,3876.7,3876.6,2.57958004]
[1761244623444,0.54002527,3876.7,3876.6,6.04658004]
[1761244627368,0.54002527,3876.8,3876.7,2.5795135]
[1761244627532,0.79849068,3877.2,3877.0,2.5793139]
[1761244627533,0.54002527,3877.1,3877.0,2.5793139]
[1761244627860,0.001,3877.6,3877.4,2.57904781]
[1761244628070,0.54009008,3877.5,3877.4,2.57904781]
[1761244628234,0.54009008,3877.5,3877.4,6.03904781]
[1761244629067,0.54109008,3877.6,3877.5,2.5789813]
[1761244629983,0.001,3877.6,3877.5,2.7077813]
[1761244630141,0.001,3877.6,3877.5,3.1697813]
[1761244632061,0.001,3877.6,3877.5,6.6247813]
[1761244632261,0.001,3877.6,3877.5,3.1697813]
[1761244632466,0.001,3877.6,3877.5,7.19766421]
[1761244632938,0.001,3877.6,3877.5,7.19666421]
[1761244633134,0.001,3877.6,3877.5,6.6207813]
[1761244633340,0.001,3877.6,3877.5,6.6197813]
[1761244634352,0.001,3877.6,3877.5,3.1697813]
[1761244634553,0.001,3877.6,3877.5,6.6177813]
[1761244636742,0.001,3877.6,3877.5,6.5677813]
[1761244637145,0.001,3877.6,3877.5,7.48246421]
[1761244648006,0.001,3877.6,3877.5,7.48446421]
[1761244650436,0.001,3877.6,3877.5,7.45846421]
[1761244650624,0.001,3877.6,3877.5,4.03646421]
[1761244650826,0.001,3877.6,3877.5,7.45746421]
[1761244651014,0.001,3877.6,3877.5,7.44846421]
[1761244651213,0.001,3877.6,3877.5,7.95534421]
[1761244651627,0.001,3877.6,3877.5,9.51054421]
[1761244654657,0.001,3877.6,3877.5,6.08954421]
[1761244654821,0.001,3877.6,3877.5,11.43754421]
[1761244655025,0.001,3877.6,3877.5,6.08954421]
[1761244655228,0.001,3877.6,3877.5,11.43654421]
[1761244655673,0.001,3877.6,3877.5,11.30774421]
[1761244656229,0.001,3877.6,3877.5,11.30674421]
[1761244663865,0.001,3877.6,3877.5,11.71560983]
[1761244664244,0.4276,3879.3,3878.8,2.57811694]
[1761244664580,0.4276,3879.3,3879.2,2.5778511]
[1761244664740,0.4276,3879.3,3879.2,5.9778511]
[1761244665344,0.001,3879.5,3879.4,2.5777182]
[1761244665977,0.001,3879.5,3879.4,2.7065182]
[1761244665978,0.4286,3879.5,3879.4,2.7065182]
[1761244670771,0.4286,3879.5,3879.4,6.1005182]
[1761244673390,0.4286,3879.5,3879.4,6.0935182]
[1761244673769,0.4286,3879.5,3879.4,6.83184967]
[1761244673770,0.001,3879.5,3879.4,6.83184967]
[1761244673971,0.001,3879.5,3879.4,3.44484967]
[1761244674289,0.4286,3879.5,3879.4,7.26144967]
[1761244674488,0.001,3879.5,3879.4,7.26144967]
[1761244676782,0.001,3879.5,3879.4,7.76832967]
[1761244677111,0.001,3879.5,3879.4,8.21012967]
[1761244678888,0.001,3879.5,3879.4,8.33769164]
[1761244679479,0.001,3879.5,3879.4,9.89289164]
[1761244681782,0.001,3879.5,3879.4,5.93552967]
[1761244681980,0.001,3879.5,3879.4,6.37132967]
[1761244682287,0.001,3879.5,3879.4,5.42864967]
[1761244682483,0.4403,3879.5,3879.4,3.0063182]
[1761244682780,0.4403,3879.5,3879.4,6.3863182]
[1761244683814,0.4403,3879.5,3879.4,6.5151182]
[1761244684388,0.4403,3879.5,3879.4,6.0865182]
[1761244684588,0.4403,3879.5,3879.4,6.0855182]
[1761244685005,0.001,3879.5,3879.4,6.95184979]
[1761244685884,0.001,3879.5,3879.4,3.57284979]
[1761244686215,0.001,3879.5,3879.4,6.97762697]
[1761244686384,0.001,3879.5,3879.4,6.95184979]
[1761244686789,0.001,3879.5,3879.4,7.45872979]
[1761244687214,0.001,3879.5,3879.4,4.07972979]
[1761244687419,0.001,3879.5,3879.4,7.45672979]
[1761244687989,0.001,3879.5,3879.4,9.31892979]
[1761244688814,0.001,3879.5,3879.4,9.31692979]
[1761244689118,0.001,3879.5,3879.4,9.75722979]
[1761244689529,0.001,3879.5,3879.4,9.32142979]
[1761244689831,0.001,3879.5,3879.4,9.75722979]
[1761244691630,0.001,3879.5,3879.4,9.75622979]
[1761244692228,0.001,3879.5,3879.4,9.31842979]
[1761244692425,0.001,3879.5,3879.4,3.88434979]
[1761244692626,0.001,3879.5,3879.4,5.9507182]
[1761244692925,0.4403,3879.5,3879.4,7.5059182]
[1761244693124,0.001,3879.5,3879.4,7.5059182]
[1761244693327,0.4403,3879.5,3879.4,2.5777182]
[1761244693530,0.4403,3879.5,3879.4,5.9497182]
[1761244694025,0.4403,3879.5,3879.4,7.5049182]
[1761244695016,0.4403,3879.5,3879.4,1.5552]
[1761244695228,0.4403,3879.5,3878.9,0.002]
[1761244695427,0.8806,3879.5,3879.3,2.57772419]
[1761244695628,0.8806,3879.5,3879.1,4.13311755]
[1761244695629,0.8806,3879.5,3879.4,3.371]
[1761244695829,0.4413,3879.5,3879.4,3.371]
[1761244696400,0.8806,3879.5,3879.4,3.371]
[1761244700425,0.8806,3879.5,3879.2,2.57784591]
[1761244700626,0.4393,3879.4,3879.3,3.367]
[1761244701736,0.4393,3879.4,3879.3,3.366]
[1761244701933,0.4393,3879.4,3879.2,2.57784591]
[1761244702109,0.4393,3879.4,3879.3,3.365]
[1761244702736,0.4393,3879.4,3879.1,0.1288]
[1761244702937,0.5681,3879.4,3878.9,0.1308]
[1761244703232,1.0094,3879.4,3878.9,0.002]
[1761244703406,0.4393,3879.3,3879.0,3.363]
[1761244703602,1.21338467,3879.3,3879.0,3.363]
[1761244703904,0.1288,3879.1,3878.9,0.002]
[1761244704227,2.57798401,3879.0,3878.9,0.002]
[1761244704426,3.55828828,3879.0,3878.9,0.002]
[1761244704617,4.3325068,3879.0,3878.9,0.002]
[1761244707528,5.8877068,3879.0,3878.9,0.002]
[1761244712938,1.21351852,3879.0,3878.9,0.002]
[1761244713837,0.4393,3879.0,3878.9,0.002]
[1761244714255,0.5681,3879.0,3878.9,0.002]
[1761244715062,2.57867592,3879.5,3878.9,2.58005047]
[1761244715063,0.4674,3879.3,3878.9,2.58005047]
[1761244715263,0.1288,3879.2,3878.9,2.58005047]
[1761244715628,2.33031064,3879.5,3879.1,2.57791755]
[1761244715629,0.4684,3879.5,3879.1,2.57791755]
[1761244715828,0.1288,3879.3,3879.1,2.57791755]
[1761244716032,0.1288,3879.3,3879.0,2.57796058]
[1761244716246,0.4674,3879.2,3879.0,2.57796058]
[1761244716534,0.4674,3879.2,3878.9,2.5800086]
[1761244717559,0.4674,3879.2,3879.0,2.57797525]
[1761244718138,0.4674,3879.2,3878.9,0.002]
[1761244718355,0.4674,3879.2,3878.9,2.58002493]
[1761244718543,0.1288,3879.3,3878.9,0.002]
[1761244718860,0.4674,3879.3,3878.9,0.47988]
[1761244719031,0.4674,3879.3,3879.2,2.5778511]
[1761244719361,0.4674,3879.3,3879.1,3.36]
[1761244719571,0.4674,3879.3,3879.2,2.5778511]
[1761244719858,0.001,3879.4,3879.1,2.57791105]
[1761244720032,0.4674,3879.3,3879.1,2.57791105]
[1761244721158,0.4674,3879.3,3879.0,2.57797732]
[1761244721366,0.5962,3879.3,3879.0,2.57797732]
[1761244721571,0.1288,3879.3,3879.2,2.5778511]
[1761244721767,0.001,3879.4,3879.0,2.57798401]
[1761244722072,0.001,3879.4,3879.3,2.57778465]
[1761244722570,0.001,3879.4,3879.2,2.57779317]
[1761244722748,0.4684,3879.4,3879.1,3.36]
[1761244722952,0.1288,3879.3,3878.9,2.58004198]
[1761244723241,0.1288,3879.3,3878.9,3.362]
[1761244723569,0.4674,3879.2,3878.9,3.362]
[1761244723769,0.4674,3879.2,3878.9,5.94002406]
[1761244724565,0.4674,3879.2,3878.9,2.58002406]
[1761244724975,0.4674,3879.2,3878.9,0.002]
[1761244725347,0.4674,3879.2,3879.0,2.57797328]
[1761244725575,0.4674,3879.2,3878.9,5.94003173]
[1761244725776,0.4674,3879.2,3878.9,0.002]
[1761244726161,0.4674,3879.2,3878.9,2.58004822]
[1761244726481,0.4674,3879.2,3879.0,2.57797533]
[1761244726779,0.4674,3879.2,3878.9,2.58003454]
[1761244727079,0.4674,3879.2,3878.9,0.002]
[1761244727779,0.4674,3879.2,3878.9,2.58003126]
[1761244727977,0.4674,3879.2,3879.0,2.57797949]
[1761244728160,0.4674,3879.2,3879.0,2.57798401]
[1761244728562,0.4674,3879.2,3878.9,2.58002766]
[1761244728879,0.4674,3879.2,3878.9,0.002]
[1761244729075,0.4674,3879.2,3878.9,3.362]
[1761244729278,3.3177953,3879.0,3878.9,0.002]
[1761244729465,4.4555285,3879.0,3878.9,0.002]
[1761244729666,4.5843285,3879.0,3878.9,0.002]
[1761244729872,7.16231251,3879.0,3878.9,0.002]
[1761244730067,7.71886667,3879.0,3878.9,0.002]
[1761244730781,4.40107137,3879.0,3878.9,0.002]
[1761244731354,0.7991332,3879.0,3878.9,0.002]
[1761244731554,0.5415332,3879.3,3879.0,2.57793041]
[1761244731759,0.001,3879.4,3879.0,2.57793041]
[1761244731960,0.001,3879.4,3879.2,2.57780712]
[1761244732474,0.001,3879.4,3879.2,3.36]
[1761244732674,0.1288,3879.3,3879.2,3.36]
[1761244733189,0.5962,3879.3,3879.2,3.36]
[1761244733558,0.1288,3879.3,3879.2,3.36]
[1761244733882,0.1288,3879.3,3879.2,5.9378511]
[1761244734676,0.001,3879.4,3879.2,5.9378511]
[1761244734677,0.001,3879.4,3879.3,2.57778465]
[1761244735711,0.001,3879.4,3879.2,5.93782686]
[1761244735887,0.001,3879.4,3879.3,2.57778465]
[1761244741471,0.001,3879.4,3879.3,5.93678465]
[1761244743305,0.001,3879.4,3879.3,3.359]
[1761244743508,0.001,3879.4,3879.3,5.93678465]
[1761244748014,0.4356,3879.4,3879.3,3.358]
[1761244748184,0.5644,3879.4,3879.0,2.57793673]
[1761244748512,1.10677086,3879.4,3879.0,5.93593673]
[1761244748716,0.4346,3879.3,3879.0,5.93593673]
[1761244748883,0.4346,3879.3,3879.1,2.57790082]
[1761244749083,0.67217086,3879.4,3879.1,2.57790082]
[1761244749283,1.10677086,3879.4,3879.1,2.57790082]
[1761244749710,0.67217086,3879.4,3879.1,2.57791755]
[1761244749926,0.54337086,3879.4,3879.3,2.57778465]
[1761244750096,0.54337086,3879.4,3879.3,3.358]
[1761244750097,0.001,3879.4,3879.3,3.358]
[1761244750605,0.001,3879.4,3878.9,0.002]
[1761244750800,0.92858748,3879.3,3878.9,0.002]
[1761244751012,0.54237086,3879.2,3878.9,3.36]
[1761244751222,0.54237086,3879.2,3878.9,5.9380439]
[1761244751526,0.001,3879.4,3878.9,5.9380439]
[1761244751527,0.54237086,3879.3,3879.0,2.57797897]
[1761244751691,0.54237086,3879.3,3878.9,3.36]
[1761244751897,0.54237086,3879.3,3879.2,2.5778511]
[1761244752118,0.001,3879.4,3879.3,2.57778465]
[1761244752431,0.001,3879.4,3879.2,5.93583282]
[1761244753005,0.001,3879.4,3878.9,0.002]
[1761244753006,0.97697086,3879.3,3878.9,0.002]
[1761244753198,0.54237086,3879.2,3878.9,0.002]
[1761244753508,0.54237086,3879.1,3878.9,0.002]
[1761244753708,0.54237086,3879.0,3878.9,0.002]
[1761244753907,0.97697086,3879.2,3878.9,0.002]
[1761244754110,0.54237086,3879.1,3878.9,0.002]
[1761244754306,0.54237086,3879.0,3878.9,0.002]
[1761244754512,0.54237086,3879.1,3878.9,0.002]
[1761244754825,0.54237086,3879.0,3878.9,0.002]
[1761244755131,0.54237086,3879.1,3878.9,0.002]
[1761244755327,0.54237086,3879.0,3878.9,0.002]
[1761244755630,0.54237086,3879.1,3878.9,0.002]
[1761244755830,0.54237086,3879.0,3878.9,0.002]
[1761244756029,0.54237086,3879.1,3878.9,0.002]